Cogmind - Beta 16.1 @@@ ROGUE MODE // 2026.03.04 @ 18:28:37 Player: Endlessblaze Result: Smashed by cave-in Performance ------------- Evolutions (1) 500 Regions Visited (3) 600 Robots Destroyed (21) 105 Value Destroyed (624) 624 Prototype IDs (2) 40 Alien Tech Used (0) 0 Bonus (0) 0 TOTAL SCORE: 1869 Bonus ------- None Cogmind --------- Core Integrity 0/400 Matter 300/300 Energy 263/265 System Corruption 3% Temperature Cool (1) Movement Walking (260) Ox2 Location -9/Mines Parts ------- > --- POWER (1) -------- Reinforced Ion Engine > --- PROPULSION (2) --- Aluminum Leg > --- UTILITY (4) ------ Small Storage Unit Small Storage Unit Signal Interpreter > --- WEAPON (2) ------- Shotgun Hammer > --- INVENTORY (8) ---- Ion Engine Medium Battery (150) Shotgun Peak State ------------ > --- POWER ------------ Improved Ion Engine > --- PROPULSION ------- Light Treads Light Treads > --- UTILITY ---------- Small Storage Unit Signal Interpreter Shield Generator > --- WEAPON ----------- Spread Laser Spread Laser > --- INVENTORY -------- Ion Engine Medium Battery High-capacity Matter Pod Light Assault Rifle [Rating: 12] Favorites ----------- Power Ion Engine Engine Ion Engine Propulsion Aluminum Leg Treads Light Treads Leg Aluminum Leg Utility Small Storage Unit Device Shield Generator Storage Small Storage Unit Processor Signal Interpreter Weapon Light Assault Rifle Energy Gun Spread Laser Ballistic Gun Light Assault Rifle Impact Weapon Hammer Build | -11 -10 -9 -9 ------- Run | Yrd Mat Mat Min Slots Evolved 2 | . . 2 . Power . | . . . . Propulsion . | . . . . Utility 2 | . . 2 . Weapon . | . . . . Parts Attached 22 | 6 . 8 8 Power 4 | 1 . 1 2 Engine 4 | 1 . 1 2 Core . | . . . . Reactor . | . . . . Propulsion 5 | 2 . 2 1 Treads 2 | . . 2 . Leg 3 | 2 . . 1 Wheel . | . . . . Hover . | . . . . Flight . | . . . . Utility 6 | 1 . 3 2 Device 2 | . . 2 . Storage 3 | 1 . . 2 Processor 1 | . . 1 . Hackware . | . . . . Protection . | . . . . Artifact . | . . . . Weapon 7 | 2 . 2 3 Energy Gun 2 | . . 2 . Energy Cannon . | . . . . Ballistic Gun 4 | 2 . . 2 Ballistic Cannon . | . . . . Launcher . | . . . . Special Weapon . | . . . . Impact Weapon 1 | . . . 1 Slashing Weapon . | . . . . Piercing Weapon . | . . . . Special Melee Weapon . | . . . . Unidentified Prototypes . | . . . . Parts Lost 12 | . . 7 5 Power 2 | . . 1 1 Propulsion 3 | . . 3 . Utility 3 | . . 2 1 Weapon 4 | . . 1 3 Highest Loss Streak 9 | . . 5 9 To Critical Strikes . | . . . . Average Backups 2 | . 1 4 2 Power . | . . . . Propulsion . | . . . . Utility 1 | . 1 2 1 Weapon . | . . 1 . Tool/Special . | . . . . Unused Backups 1 | . . . 1 Power . | . . . . Propulsion . | . . . . Utility 1 | . . . 1 Weapon . | . . . . Tool/Special . | . . . . Average Slot Usage (%) 82 | . 85 84 78 Engine 11 | . 14 9 9 Treads 2 | . . 8 . Leg 15 | . 28 11 8 Device 3 | . . 11 . Storage 18 | . 14 11 28 Processor 7 | . . 10 11 Energy Gun 1 | . . 2 1 Ballistic Gun 21 | . 28 19 18 Peak Build Rating 12 | 6 6 12 11 Average Rating 8 | 5 6 9 9 On Entrance 4 | . 6 6 6 Avg Prop Armor Cover (%) 30 | 30 . . . Naked Turns . | . . . . Heaviest Build 30 | 12 12 20 30 Greatest Support 40 | 20 20 40 10 Greatest Overweight (x) 4 | . . 3 4 Average Overweight (x) . | . . . 2 Largest Inventory Capacity 8 | 8 8 8 8 Average Capacity 7 | 7 8 8 8 Most Carried 6 | . 3 6 3 Average Carried 2 | . 1 4 2 Final Capacity 8 | 8 8 8 8 Final Carried 4 | . 3 4 3 Class Distribution -------------------- 98% | Mutant Dominant Class ---------------- Mutant | -10/Materials Mutant | -9/Materials Mutant | -9/Mines Resources | -11 -10 -9 -9 ----------- Run | Yrd Mat Mat Min Matter Collected 726 | 249 13 198 266 Remotely . | . . . . Salvage Created 782 | 28 108 331 315 Parts 38 | 2 6 18 12 Haulers Intercepted . | . . . . Recyclers Shooed 1 | . 1 . . Parts Field Recycled . | . . . . Retrieved Matter . | . . . . Parts Self-Destructed . | . . . . Prevented . | . . . . Parts Restored . | . . . . Kills | -11 -10 -9 -9 ------- Run | Yrd Mat Mat Min Combat Hostiles Destroyed 19 | . 5 8 6 Guns 19 | . 5 8 6 Classes Destroyed 6 | 1 2 1 2 Tunneler 1 | 1 . . . Recycler 1 | . . . 1 Swarmer 4 | . 3 1 . Grunt 11 | . 2 4 5 Brawler 1 | . . . 1 Sentry 3 | . . 3 . Best Kill Streak 4 | 1 3 4 4 Combat Bots Only 4 | . 3 4 3 Max Kills in Single Turn 2 | 1 2 1 1 Gunslinging 1 | . 1 . . Exploded . | . . . . Melee . | . . . . Uniques/NPCs Destroyed . | . . . . Combat | -11 -10 -9 -9 -------- Run | Yrd Mat Mat Min Hostile Shots Fired 234 | . 34 141 59 Missed 76 | . 14 45 17 Hits 158 | . 20 96 42 Melee 2 | . . . 2 Projectile 156 | . 20 96 40 AOE 1 | . . 1 . Damage Taken 1752 | . 210 946 596 Core 422 | . 22 218 182 Absorbed by Shields 229 | . . 229 . Core Remaining (%) 95 | 100 91 . . Volleys Fired 78 | 4 22 34 18 Largest 2 | 2 2 2 2 Hottest 130 | 40 40 130 46 Shots Fired 155 | 8 44 67 36 Gun 155 | 8 44 67 36 Cannon . | . . . . Launcher . | . . . . Special . | . . . . Kinetic 153 | 8 44 65 36 Thermal 2 | . . 2 . Explosive . | . . . . Electromagnetic . | . . . . Robot Hit Streak 11 | 3 8 11 6 Robot Miss Streak 3 | 2 3 2 2 Penetration Max . | . . . . Secondary Targets 4 | . 1 2 1 Max Gunslinging Chain 1 | . 1 1 1 Shots Hit Robots 103 | 5 27 41 30 Core Hits 53 | 2 10 24 17 Critical Kills . | . . . . Critical Parts Destroyed . | . . . . Critical Strikes . | . . . . Melee Attacks 7 | . . . 7 Impact 7 | . . . 7 Slashing . | . . . . Piercing . | . . . . Sneak Attacks . | . . . . Combat Hostiles . | . . . . Follow-up Attacks . | . . . . Damage Inflicted 1126 | 36 245 406 439 Guns 1125 | 36 245 405 439 Cannons . | . . . . Explosions . | . . . . Melee . | . . . . Ramming 1 | . . 1 . Kinetic 1100 | 36 245 380 439 Thermal 25 | . . 25 . Explosive . | . . . . Electromagnetic . | . . . . Impact . | . . . . Slashing . | . . . . Piercing . | . . . . Highest Corruption . | . . . . Average Corruption . | . . . . Corruption Purged . | . . . . Corruption Blocked . | . . . . Overload Shots . | . . . . Overflow Damage . | . . . . Projectiles . | . . . . Explosions . | . . . . Melee . | . . . . Knockbacks . | . . . . Impact . | . . . . Kinetic . | . . . . Secondary . | . . . . Self-Inflicted Damage . | . . . . Shots . | . . . . Rammed 1 | . . 1 . Targets Rammed 1 | . . 1 . Kicked . | . . . . Crushed . | . . . . Highest Temperature 63 | . 21 63 32 Average Temperature 12 | . 8 9 19 Received Heat Transfer 691 | . 99 334 258 Siege Activations . | . . . . Martial Activations . | . . . . Shielding Activations . | . . . . Robots Disrupted . | . . . . Combat Hostiles . | . . . . Robots Corrupted . | . . . . Combat Hostiles . | . . . . Parts Fried . | . . . . Impact Corruptions . | . . . . Robots Melted . | . . . . Combat Hostiles . | . . . . Parts Melted . | . . . . Heat Transferred 30 | . . 30 . Parts Sabotaged . | . . . . Parts Stolen . | . . . . Parts Stripped . | . . . . Power Chain Reactions . | . . . . Alert | -11 -10 -9 -9 ------- Run | Yrd Mat Mat Min Maximum Alert Level . | . . . . Low Security (%) 100 | 100 100 100 100 Level 1 . | . . . . Level 2 . | . . . . Level 3 . | . . . . Level 4 . | . . . . Level 5 . | . . . . High Security . | . . . . Max Security . | . . . . Peak Influence 126 | 5 70 126 85 Initial 25 | . . 25 25 Average 28 | . 8 54 31 Influence Increases 515 | 5 126 236 148 Destroy 0b10 Robot/C 380 | . 100 160 120 Destroy 0b10 Robot/NC 10 | 5 . . 5 Destroy Leader 80 | . 10 50 20 Successful Hack 42 | . 16 26 . Destroy Structure 3 | . . . 3 Influence Decreases 515 | 5 66 230 214 Entered New Map 76 | . . 35 41 Time Decay 348 | 5 66 125 152 Lost Part 81 | . . 60 21 Lost Ally 10 | . . 10 . Squads Dispatched 2 | . 1 1 . Investigation . | . . . . Extermination . | . . . . Reinforcement 2 | . 1 1 . Assault . | . . . . Garrison . | . . . . Intercept . | . . . . Searches Triggered . | . . . . Construction Impeded . | . . . . Haulers Reinforced . | . . . . Active Scanning Responses . | . . . . Cargo Convoy Interrupts . | . . . . Stealth | -11 -10 -9 -9 --------- Run | Yrd Mat Mat Min Distress Signals 4 | . . 2 2 Communications Jammed . | . . . . Distress Signals . | . . . . Times Spotted 44 | . 15 23 6 Peak Tracking Total 11 | . 9 11 3 Tactical Retreats 1 | . . 1 . ECM-based Alert Blocks 1 | . . 1 . Traps | -11 -10 -9 -9 ------- Run | Yrd Mat Mat Min Traps Triggered . | . . . . Indirectly . | . . . . Trap Hack Attempts . | . . . . Triggered . | . . . . Disarmed . | . . . . Reprogrammed . | . . . . Reused . | . . . . Traps Extracted . | . . . . Installed . | . . . . Triggered . | . . . . Machines | -11 -10 -9 -9 ---------- Run | Yrd Mat Mat Min Machines Disabled . | . . . . Max in Single Turn . | . . . . Machines Repaired . | . . . . Machines Dismantled . | . . . . Machines Sabotaged . | . . . . Overloaded Fab Kills . | . . . . Hacking | -11 -10 -9 -9 --------- Run | Yrd Mat Mat Min Machines Accessed 6 | . 3 3 . Terminals 5 | . 2 3 . Fabricators . | . . . . Repair Stations . | . . . . Recycling Units 1 | . 1 . . Scanalyzers . | . . . . Garrison Access . | . . . . Total Hacks 24 | . 10 14 . Successful 18 | . 8 10 . Failed 6 | . 2 4 . Catastrophic . | . . . . Database Lockouts . | . . . . Manual 18 | . 7 11 . Terminals 21 | . 7 14 . Fabricators . | . . . . Repair Stations . | . . . . Recycling Units 3 | . 3 . . Scanalyzers . | . . . . Garrison Access . | . . . . Terminal Hacks 4 | . 1 3 . Prototype ID Bank 1 | . . 1 . Terminal Index 1 | . 1 . . Dispatch Records 1 | . . 1 . Hauler Manifests 1 | . . 1 . Fabricator Hacks . | . . . . Repair Station Hacks . | . . . . Recycling Unit Hacks 1 | . 1 . . Report Inventory 1 | . 1 . . Scanalyzer . | . . . . Garrison Access Hacks . | . . . . Unauthorized Hacks 13 | . 6 7 . Terminals 11 | . 4 7 . Track 3 | . 1 2 . Assimilate 2 | . . 2 . Botnet 5 | . 2 3 . Disrupt 1 | . 1 . . Fabricators . | . . . . Repair Stations . | . . . . Recycling Units 2 | . 2 . . Monitor 1 | . 1 . . Mask 1 | . 1 . . Scanalyzers . | . . . . Garrison Access . | . . . . Data Cores Recovered . | . . . . Used . | . . . . Hacking Detections 5 | . 3 2 . Full Trace Events . | . . . . Feedback Events . | . . . . Feedback Blocked . | . . . . Robot Schematics Acquired . | . . . . Robots Built . | . . . . Authchips . | . . . . Time . | . . . . Total Robot Build Rating . | . . . . Part Schematics Acquired . | . . . . Parts Built . | . . . . Authchips . | . . . . Time . | . . . . Total Part Build Rating . | . . . . Part Studies Acquired . | . . . . Parts Repaired . | . . . . Time . | . . . . Parts Recycled . | . . . . Recycled Matter . | . . . . Retrieved Matter . | . . . . Retrieved Components . | . . . . Parts Scanalyzed . | . . . . Part Schematics Acquired . | . . . . Parts Damaged . | . . . . Bothacking | -11 -10 -9 -9 ------------ Run | Yrd Mat Mat Min Used RIF Installer . | . . . . Robots Hacked . | . . . . Non-combat . | . . . . Combat . | . . . . Robot Hacks Applied . | . . . . Relay Couplers Released . | . . . . Fabnet Peak Effective % . | . . . . Robots Rewired . | . . . . Allies Hacked . | . . . . Hacks Repelled . | . . . . Allies | -11 -10 -9 -9 -------- Run | Yrd Mat Mat Min Total Allies 1 | . . 1 . Largest Group 1 | . . 1 . Highest-Rated Group 10 | . . 10 . Highest-Rated Ally 10 | . . 10 . Total Orders . | . . . . Ally Attacks . | . . . . Total Damage . | . . . . Kills . | . . . . Allies Corrupted . | . . . . Allies Melted . | . . . . Intel | -11 -10 -9 -9 ------- Run | Yrd Mat Mat Min Active Infowar (turns) 105 | . . 105 . ECM 105 | . . 105 . Robot Analysis Total . | . . . . Derelict Logs Recovered . | . . . . Drone Launches . | . . . . Drone Recoveries . | . . . . Exploration | -11 -10 -9 -9 ------------- Run | Yrd Mat Mat Min Turns Passed 1127 | 94 341 302 390 Spaces Moved 496 | 70 235 140 51 Core 40 | 13 . 1 26 Treads 61 | . . 61 . Legs 395 | 57 235 78 25 Wheels . | . . . . Hover . | . . . . Flight . | . . . . Fastest Speed 50 | 50 120 120 150 Average Speed 136 | 107 120 141 243 Slowest Speed 260 | 120 120 200 260 Overloaded Moves . | . . . . Propulsion Burnouts . | . . . . Robots Hopped . | . . . . Potential Cave-ins 1 | . . . 1 Cave-ins Triggered 1 | . . . 1 Exploration Rate (%) 19 | 3 35 27 11 Regions Visited 3 Branch Regions 1 Pre-discovered Areas . | . . . . Known Exits Taken 1 | . . 1 . Unknown Exits Taken 2 | 1 1 . . Scrap Searched 1 | . . . 1 Spaces Dug 4 | . . . 4 Terrain Destroyed 4 | . . . 4 Melee 4 | . . . 4 Projectile . | . . . . AOE . | . . . . Terrain Rammed . | . . . . Walls Destroyed . | . . . . Machines Disabled . | . . . . Actions | -11 -10 -9 -9 --------- Run | Yrd Mat Mat Min Total 792 | 79 259 188 266 Wait 182 | . . 2 180 Move 492 | 69 234 139 50 Hop . | . . . . Pick Up 6 | . 3 2 1 Fast Attach 14 | 6 . 3 5 Attach 6 | . . 3 3 Detach . | . . . . Swap 5 | . . 3 2 Drop 1 | . . 1 . Fire 78 | 4 22 34 18 Melee 7 | . . . 7 Ram . | . . . . Kick . | . . . . Crush 1 | . . 1 . Escape Stasis . | . . . . Rewire . | . . . . Trap . | . . . . Miscellaneous . | . . . . Route ------- -11/Scrapyard -10/Materials (discovered 2 exits: *Mat / [*Min]) -9/Materials -9/Mines History --------- Turn | Location | Event 4 | -11/Scrapyard | Discovered new exit (range 16) 95 | -11/Scrapyard | Entered Materials 246 | -10/Materials | Discovered new exit (range 9) 305 | -10/Materials | Build established: Mutant 391 | -10/Materials | Discovered new exit (range 8) 436 | -10/Materials | Entered another Materials area 436 | -9/Materials | Evolved 2 slots: Utility x2 717 | -9/Materials | Discovered new exit (range 13) 736 | -9/Materials | Core integrity fell below 50% 736 | -9/Materials | Identified exit to Mines 738 | -9/Materials | Entered Mines 805 | -9/Mines | Lost 9 parts (2p2n1u4w) 893 | -9/Mines | Core integrity fell below 20% 914 | -9/Mines | Excavation squad dispatched 914 | -9/Mines | A large section of the Mines collapsed 1128 | -9/Mines | Crushed by falling debris 1128 | -9/Mines | Smashed by cave-in Last Messages --------------- 00899_ K-01 Serf collects debris. 00903_ R-06 Scavenger collects Imp. Heat Sink. 00904_ G-34 Mercenary destroyed. 00905_ K-01 Serf collects debris. 00907_ G-34 Mercenary destroyed. 00908_ K-01 Serf collects debris. 00914_ 28 Matter crushed. 00914_ Aluminum Leg crushed. 00914_ 38 Matter crushed. 00914_ K-01 Serf crushed by falling debris. 00914_ K-01 Serf destroyed. 00914_ 41 Matter crushed. 00914_ Aluminum Leg crushed. 00914_ ALERT: Suspicious cave-in, suspected derelict activity in mines. Dispatching escorted excavation squad. 01128_ The unstable cave ceiling collapses. 01128_ Crushed by falling debris. 01128_ Hcp. Matter Pod destroyed. 01128_ System corrupted by crushing effect (+3). Map ----- +----------------------------------------------------+ | ?????????????????????????????????????????????? | | ?????????????????????????????????????????????? | | ?????????????????????????????????????????????? | | ?????????????????????????????????????????????? | | ?????????????????????????????????????????????? | | ?????????????????????????????????????????????? | | ?????????????????????????????????????????????? | | ?????????????????????????????????????????????? | | ?????????????????????????????????????????????? | | ?????????????????????????????????????????????? | | ?????????????????????????????????????????????? | | ?????????????????????????????????????????????? | | ?????????????????????????????????????????????? | | ?????????????????????????????????????????????? | | ?????????????????????????????????????????????? | | ?????????????????????????????####????????????? | | ?????????????????????????????# ????????????? | | ?????????????????????????????# #????????????? | | ????????????????????????????? #????????????? | | ?????????????????????????????# #????????????? | | ????????????????????????###### ##??##???????? | | ???????? ############ ## ##??????? | | ?????? "%" = ##?????? | | ?????? " $ ####%%* #?????? | | ??????# ########### #######= #?????? | | ???????????????????????# @ ;; =# ##?????? | | ???????????????????????# ####### ####??????? | | ???????????????????????# #?# ##?????????? | | ???????????????????????# #?## ##??????????? | | ???????????????????????# #??# ###???????????? | | ???????????????????????# #??# #?????????????? | | ???????????????????????# ### ###### #??????? | | ???????????????????????# ## #??????? | | ???????????????????????# # #???????????? | | ???????????????????????# #???????????? | | ???????????????????????#### ##???????????? | | ??????????????????????????## ##????????????? | | ????????????????????????????####?????????????? | | ?????????????????????????????????????????????? | | | | | | | | | | | | | | | | | | | | | | | +----------------------------------------------------+ Best States ------------- Heat Dissipation 28 Energy Generation 12 Energy Capacity 265 Matter Stores 454 Matter Capacity 500 Sight Range 16 Terrain Scan Density 10 ECM Strength 1 Evasion (%) 55 Recoil Reduction 2 Item Schematics ----------------- None Robot Schematics ------------------ None Fabricated ------------ Nothing Repaired ---------- Nothing Studied --------- None Alien Tech Used ----------------- None Achievements -------------- None Challenges ------------ None Game ------ Seed TrapHardcellDetector Manual? 0 Play Time 00:12:43 Cumulative 44.9 hours Start 2026.03.04 @ 18:05:47 End 2026.03.04 @ 18:28:37 Sessions 1 Manual Loads 0 Difficulty Rogue Special Mode None Game No. 63 Rogue 63 Adventurer 0 Explorer 0 Win Type - Total 0 Types 0/0/0/0/0/0/0/0/0/0 Lore% 41 Gallery% 31 Achievement% 22 Wizard Run 0 Options --------- Layout 1 ASCII 0 Keyboard 0 Movement Arrows Keybinds 0 Fullscreen 1 Font 16/SmallcapsGlow Map View 55x38 Zoom Use 0% Tactical HUD 1 Map Filters NONE Filters NONE Steam 1 RUN: 3cf9f9e6-854b-4594-90d8-f060828c080d